bitfinex-derivatives/quotes_BTCF0:USTF0_20250324
["timestamp","ask_amount","ask_price","bid_price","bid_amount"]
[1742812638108,0.00968949,87617.0,87616.0,0.3082544]
[1742812638414,0.00968949,87617.0,87616.0,0.3089744]
[1742812638415,0.12311757,87617.0,87616.0,0.3089744]
[1742812638630,0.11494808,87617.0,87616.0,0.3089744]
[1742812638808,0.14694808,87617.0,87616.0,0.3089744]
[1742812639114,0.26108408,87617.0,87616.0,0.3089744]
[1742812639901,0.26108408,87617.0,87616.0,0.1948496]
[1742812644401,0.0008,87617.0,87616.0,0.1948496]
[1742812644619,0.1473308,87617.0,87616.0,0.1948496]
[1742812644817,0.1480508,87617.0,87616.0,0.1948496]
[1742812646210,0.1480508,87617.0,87616.0,0.1988496]
[1742812646412,0.1480508,87617.0,87616.0,0.2028496]
[1742812647615,0.26218455,87617.0,87616.0,0.08872]
[1742812647823,0.29238455,87617.0,87616.0,0.08872]
[1742812648811,0.29238455,87617.0,87616.0,0.2028521]
[1742812649307,0.29238455,87617.0,87616.0,0.2350521]
[1742812649821,0.29238455,87617.0,87616.0,0.12092]
[1742812651123,0.29449455,87617.0,87616.0,0.12092]
[1742812651424,0.29449455,87617.0,87616.0,0.08872]
[1742812656826,0.29449455,87617.0,87616.0,0.12122]
[1742812662025,0.29449455,87617.0,87616.0,0.11122]
[1742812662826,0.29449455,87617.0,87616.0,0.07872]
[1742812663422,0.29449455,87617.0,87616.0,0.1928521]
[1742812664041,0.29449455,87617.0,87616.0,0.07872]
[1742812665830,0.29449455,87617.0,87616.0,0.01872]
[1742812666228,0.29449455,87617.0,87616.0,0.1328521]
[1742812666427,0.29449455,87617.0,87616.0,0.01872]
[1742812667719,0.29449455,87617.0,87616.0,0.1328521]
[1742812669331,0.29449455,87617.0,87616.0,0.4936521]
[1742812670634,0.29449455,87617.0,87616.0,0.37952]
[1742812671035,0.29449455,87617.0,87616.0,0.4936521]
[1742812672331,0.29449455,87617.0,87616.0,0.4836521]
[1742812673633,0.29449455,87617.0,87616.0,0.5136521]
[1742812673836,0.29449455,87617.0,87616.0,0.5236521]
[1742812674841,0.29449455,87617.0,87616.0,0.5136521]
[1742812675637,0.29449455,87617.0,87616.0,0.5236521]
[1742812677140,0.29449455,87617.0,87616.0,0.5136521]
[1742812680940,0.29449455,87617.0,87616.0,0.39952]
[1742812681926,0.29449455,87617.0,87616.0,0.5136521]
[1742812684533,0.29449455,87617.0,87616.0,0.39952]
[1742812686032,0.29449455,87617.0,87616.0,0.36952]
[1742812687355,0.29449455,87617.0,87616.0,0.4836521]
[1742812687645,0.29449455,87617.0,87616.0,0.36952]
[1742812689437,0.1141451,87606.0,87605.0,0.49236491]
[1742812689637,0.1147851,87606.0,87605.0,0.5066464]
[1742812689836,0.1767851,87606.0,87605.0,0.5066464]
[1742812690254,0.29091885,87606.0,87605.0,0.52300248]
[1742812690546,0.29091885,87606.0,87605.0,0.01695608]
[1742812691938,0.29191885,87606.0,87605.0,0.01895608]
[1742812692139,0.29291885,87606.0,87605.0,0.02395608]
[1742812692547,0.32321885,87606.0,87605.0,0.02395608]
[1742812693553,0.30191885,87606.0,87605.0,0.02395608]
[1742812693845,0.41610885,87606.0,87605.0,0.02395608]
[1742812694243,0.41610885,87606.0,87605.0,0.05645608]
[1742812694444,0.41610885,87606.0,87605.0,0.05585608]
[1742812694644,0.41610885,87606.0,87605.0,0.05649608]
[1742812695738,0.41610885,87606.0,87605.0,0.02335608]
[1742812697153,0.41610885,87606.0,87605.0,0.02399608]
[1742812697352,0.41610885,87606.0,87605.0,0.02335608]
[1742812697543,0.41610885,87606.0,87605.0,0.02395608]
[1742812704568,0.41610885,87606.0,87605.0,0.08595608]
[1742812705756,0.41610885,87606.0,87605.0,0.02395608]
[1742812708749,0.41610885,87606.0,87605.0,0.0076]
[1742812709947,0.41610885,87606.0,87605.0,0.02350719]
[1742812710151,0.41610885,87606.0,87605.0,0.0076]
[1742812711251,0.41610885,87606.0,87605.0,0.0399]
[1742812714156,0.41610885,87606.0,87605.0,0.05634814]
[1742812714853,0.41610885,87606.0,87605.0,0.0076]
[1742812721965,0.30406885,87606.0,87605.0,0.0076]
[1742812722159,0.3608,87634.0,87607.0,0.0570717]
[1742812722360,0.057062,87623.0,87610.0,0.0570697]
[1742812722577,0.22827718,87619.0,87618.0,0.1141295]
[1742812722767,0.22827718,87619.0,87618.0,0.4514955]
[1742812722967,0.00092,87619.0,87618.0,0.4524155]
[1742812723278,0.11321789,87640.0,87622.0,0.0570621]
[1742812723471,0.1711586,87637.0,87636.0,0.1141034]
[1742812723662,0.17175861,87637.0,87636.0,0.1790434]
[1742812723970,0.17175861,87637.0,87636.0,0.19479504]
[1742812724370,0.28586631,87637.0,87636.0,0.19479504]
[1742812725162,0.28686631,87637.0,87636.0,0.19479504]
[1742812726171,0.28691045,87637.0,87636.0,0.19479504]
[1742812726767,0.31841045,87637.0,87636.0,0.19479504]
[1742812726970,0.31841045,87637.0,87636.0,0.08069164]
[1742812727175,0.31841045,87637.0,87636.0,0.19479764]
[1742812729373,0.0570496,87642.0,87636.0,0.19479764]
[1742812729374,0.3637,87663.0,87636.0,1.25179164]
[1742812729572,0.0570317,87669.0,87662.0,0.3608]
[1742812729573,0.171103,87669.0,87662.0,0.3608]
[1742812729781,0.0570338,87667.0,87663.0,0.1774684]
[1742812730076,0.1141496,87664.0,87663.0,0.1788684]
[1742812730282,0.0570215,87687.0,87686.0,0.1140397]
[1742812730464,0.0029,87693.0,87686.0,0.1140397]
[1742812730465,0.00180001,87688.0,87687.0,0.1140397]
[1742812730668,0.00180001,87688.0,87687.0,0.1154397]
[1742812730669,0.0004,87688.0,87687.0,0.1154397]
[1742812730864,0.00048,87688.0,87687.0,0.39096714]
[1742812731079,0.3608,87716.0,87687.0,1.04772744]
[1742812731279,0.0004,87736.0,87712.0,0.3608]
[1742812731472,0.1140059,87713.0,87712.0,0.3626]
[1742812731867,0.1140059,87713.0,87712.0,0.3039603]
[1742812732080,0.22801473,87713.0,87712.0,0.0018]
[1742812732382,0.1140163,87705.0,87704.0,0.00017103]
[1742812732566,0.12299133,87705.0,87704.0,0.00205103]
[1742812732967,0.23701056,87705.0,87704.0,0.00205103]
[1742812733178,0.26891056,87705.0,87704.0,0.01000003]
[1742812733477,0.38211057,87705.0,87704.0,0.01000003]
[1742812733783,0.27015057,87705.0,87704.0,0.01088]
[1742812733982,0.38211057,87705.0,87704.0,0.01088]
[1742812734285,0.38211057,87705.0,87704.0,0.00088]
[1742812734286,0.30029351,87705.0,87704.0,0.00088]
[1742812734484,0.41225351,87705.0,87704.0,0.00088]
[1742812734681,0.1140215,87701.0,87700.0,0.3608]
[1742812734980,0.12313947,87701.0,87700.0,0.3808]
[1742812735183,0.12313947,87701.0,87700.0,0.3614]
[1742812735382,0.23775871,87701.0,87700.0,0.3614]
[1742812735685,0.23775871,87701.0,87700.0,0.3608]
[1742812735686,0.2371587,87701.0,87700.0,0.3608]
[1742812736078,0.23717907,87701.0,87700.0,0.4235]
[1742812736279,8e-05,87705.0,87704.0,0.1140176]
[1742812736584,0.3608,87749.0,87721.0,0.0569972]
[1742812736881,0.3608,87749.0,87700.0,0.4235]
[1742812736882,0.114376,87736.0,87735.0,0.3608]
[1742812737587,0.29149523,87736.0,87735.0,0.3608]
[1742812737967,0.40349523,87736.0,87735.0,0.3608]
[1742812738168,0.40445523,87736.0,87735.0,0.3608]
[1742812738382,0.41445523,87736.0,87735.0,0.3608]
[1742812738775,0.41445523,87736.0,87735.0,0.3258829]
[1742812738969,0.1139864,87728.0,87727.0,0.00017103]
[1742812739376,0.1239864,87728.0,87727.0,0.00017103]
[1742812740179,0.33988534,87728.0,87727.0,3e-08]
[1742812740379,0.34048535,87728.0,87727.0,3e-08]
[1742812740773,0.70128535,87728.0,87727.0,3e-08]
[1742812740974,0.71128535,87728.0,87727.0,3e-08]
[1742812741478,0.70128535,87728.0,87727.0,3e-08]
[1742812741677,0.50128535,87728.0,87727.0,3e-08]
[1742812741878,0.61527175,87728.0,87727.0,3e-08]
[1742812742187,0.64707175,87728.0,87727.0,3e-08]
[1742812742369,0.1140124,87708.0,87707.0,0.0302]
[1742812742570,0.12969974,87708.0,87707.0,0.0306]
[1742812742774,0.12969974,87708.0,87707.0,0.0206]
[1742812742973,0.30621507,87708.0,87707.0,0.0206]
[1742812743184,0.30621507,87708.0,87707.0,0.0306]
[1742812743185,0.27461507,87708.0,87707.0,0.0306]
[1742812743382,0.27461507,87708.0,87707.0,0.1446137]
[1742812743693,0.27461507,87708.0,87707.0,0.0346]
[1742812743988,0.27461507,87708.0,87707.0,0.0246]
[1742812744383,0.27461507,87708.0,87707.0,0.0653]
[1742812744580,0.27461507,87708.0,87707.0,0.0553]
[1742812745084,0.24371507,87708.0,87707.0,0.1523137]
[1742812745289,0.12970267,87708.0,87707.0,0.1523137]
[1742812745478,0.00017103,87716.0,87715.0,0.1140033]
[1742812745674,0.00017103,87716.0,87715.0,0.4756033]
[1742812746487,0.11417303,87716.0,87715.0,0.4756033]
[1742812746670,0.11497303,87716.0,87715.0,0.4766033]
[1742812747075,0.11497303,87716.0,87715.0,0.3626]
[1742812747274,0.11497303,87716.0,87715.0,0.47452]
[1742812747474,0.22897796,87716.0,87715.0,0.3636]
[1742812747691,0.25997796,87716.0,87715.0,0.0028]
[1742812747877,0.25997796,87716.0,87715.0,0.002]
[1742812748378,0.26956382,87716.0,87715.0,0.0028]
[1742812749091,0.26948023,87716.0,87715.0,0.0028]
[1742812750883,0.14397261,87716.0,87715.0,0.0028]
[1742812751078,0.25901755,87716.0,87715.0,0.0028]
[1742812751590,0.12454428,87716.0,87715.0,0.1168033]
[1742812751887,0.00950227,87716.0,87715.0,0.1168033]
[1742812752085,0.00950227,87716.0,87715.0,0.2908833]
[1742812752282,0.00950227,87716.0,87715.0,0.1890033]
[1742812752482,0.00950227,87716.0,87715.0,0.3008833]
[1742812752887,0.13239978,87716.0,87715.0,0.2908833]
[1742812753315,0.13343979,87716.0,87715.0,0.2908833]
[1742812753592,0.13326144,87716.0,87715.0,0.2908833]
[1742812753778,0.01925944,87716.0,87715.0,0.2908833]
[1742812753976,0.01821943,87716.0,87715.0,0.5708833]
[1742812754186,0.01821943,87716.0,87715.0,0.3008833]
[1742812754887,0.13222143,87716.0,87715.0,0.3008833]
[1742812755295,0.056999,87719.0,87715.0,0.18688]
[1742812755482,0.1709992,87718.0,87717.0,0.1139994]
[1742812755681,0.1709992,87718.0,87717.0,0.4847994]
[1742812755885,0.05803981,87718.0,87717.0,0.4858394]
[1742812756591,0.02843801,87737.0,87724.0,0.0569954]
[1742812756793,0.0004,87768.0,87732.0,0.3608]
[1742812756995,0.3608,87783.0,87732.0,0.3608]
[1742812756996,0.3608,87803.0,87767.0,0.3608]
[1742812757290,0.1172136,87784.0,87783.0,0.3608]
[1742812757698,0.1172136,87784.0,87783.0,0.36216]
[1742812757699,0.26445969,87784.0,87783.0,0.36216]
[1742812758002,0.1185736,87784.0,87783.0,0.48474593]
[1742812758194,0.1185736,87784.0,87783.0,0.36216]
[1742812758195,0.00466,87784.0,87783.0,0.36216]
[1742812758389,0.0033,87784.0,87783.0,0.5904349]
[1742812758588,0.1172136,87784.0,87783.0,0.47652]
[1742812758790,0.1185736,87784.0,87783.0,0.47652]
[1742812758995,0.23249022,87784.0,87783.0,0.36216]
[1742812759199,0.23249022,87784.0,87783.0,0.00136]
[1742812759384,0.23249022,87784.0,87783.0,0.1139149]
[1742812759385,0.00466,87784.0,87783.0,0.1139149]
[1742812759592,0.1172136,87784.0,87783.0,0.0014]
[1742812759791,0.113924,87776.0,87775.0,0.3608]
[1742812760089,0.114844,87776.0,87775.0,0.36172]
[1742812760492,0.22876062,87776.0,87775.0,0.4756453]
[1742812760697,0.114844,87776.0,87775.0,0.4756453]
[1742812760894,0.114844,87776.0,87775.0,0.36172]
[1742812761198,0.228771,87776.0,87775.0,0.36172]
[1742812761397,0.228771,87776.0,87775.0,0.00092]
[1742812761589,0.1139344,87768.0,87767.0,0.11410663]
[1742812761789,0.1149344,87768.0,87767.0,0.11510663]
[1742812761991,0.1129344,87768.0,87767.0,0.11510663]
[1742812762289,0.1119344,87768.0,87767.0,0.11510663]
[1742812762890,0.1119344,87768.0,87767.0,0.12210663]
[1742812765006,0.001,87768.0,87767.0,0.12210663]
[1742812765205,0.1139344,87768.0,87767.0,0.12210663]
[1742812765399,0.11489441,87768.0,87767.0,0.12210663]
[1742812766706,0.00096001,87768.0,87767.0,0.12210663]
[1742812766907,0.0313,87769.0,87768.0,0.1139344]
[1742812767105,0.0313,87769.0,87768.0,0.1148544]
[1742812767307,0.0313,87769.0,87768.0,0.1204544]
[1742812767505,0.04047345,87769.0,87768.0,0.1304544]
[1742812767694,0.04139345,87769.0,87768.0,0.1304544]
[1742812768293,0.04139345,87769.0,87768.0,0.1334544]
[1742812768498,0.04139345,87769.0,87768.0,0.2485744]
[1742812768808,0.04139345,87769.0,87768.0,0.2515744]
[1742812769006,0.15532655,87769.0,87768.0,0.01692]
[1742812769205,0.26926264,87769.0,87768.0,0.00692]
[1742812770405,0.1139344,87768.0,87767.0,0.00017093]
[1742812770607,0.1139357,87767.0,87766.0,0.3608]
[1742812770811,0.14783571,87767.0,87766.0,0.36152]
[1742812771009,0.15700916,87767.0,87766.0,0.36152]
[1742812771306,0.27094784,87767.0,87766.0,0.36152]
[1742812771608,0.26694784,87767.0,87766.0,0.36152]
[1742812772504,0.28209262,87767.0,87766.0,0.36552]
[1742812772704,0.28209262,87767.0,87766.0,0.479457]
[1742812772895,0.28209262,87767.0,87766.0,0.482457]
[1742812773607,0.28209262,87767.0,87766.0,0.597337]
[1742812773608,0.17215394,87767.0,87766.0,0.597337]
[1742812774207,0.05821824,87767.0,87766.0,0.597337]
[1742812774399,0.17215394,87767.0,87766.0,0.597337]
[1742812774609,0.15640915,87767.0,87766.0,0.597337]
[1742812775112,0.15712915,87767.0,87766.0,0.597337]
[1742812776714,0.27106783,87767.0,87766.0,0.4834]
[1742812776912,0.27106783,87767.0,87766.0,0.597337]
[1742812778509,0.27106783,87767.0,87766.0,0.36852]
[1742812779002,0.27106783,87767.0,87766.0,0.482457]
[1742812780107,0.26189438,87767.0,87766.0,0.482457]
[1742812780310,0.29249438,87767.0,87766.0,0.482457]
[1742812780817,0.29249438,87767.0,87766.0,0.21882]
[1742812781017,0.29249438,87767.0,87766.0,0.21942]
[1742812781224,0.30143461,87767.0,87766.0,0.21942]
[1742812782408,0.29249438,87767.0,87766.0,0.21942]
[1742812785115,0.40677438,87767.0,87766.0,0.21942]
[1742812786013,0.40677438,87767.0,87766.0,0.0076]
[1742812786218,0.40677438,87767.0,87766.0,0.120937]
[1742812786516,0.17855868,87767.0,87766.0,0.120937]
[1742812786715,0.0001706,87775.0,87774.0,0.1139266]
[1742812786902,0.0033,87784.0,87783.0,0.1139149]
[1742812787108,0.0033,87784.0,87783.0,0.6518749]
[1742812787607,0.00398,87784.0,87783.0,0.6518749]
[1742812787803,0.0033,87784.0,87783.0,0.6518749]
[1742812788523,0.01235599,87784.0,87783.0,0.6518749]
[1742812788816,0.01335599,87784.0,87783.0,0.6517549]
[1742812789522,0.01335599,87784.0,87783.0,0.9117549]
[1742812790105,0.01435599,87784.0,87783.0,0.9117549]
[1742812790920,8e-05,87788.0,87787.0,0.1139098]
[1742812791120,8e-05,87788.0,87787.0,0.1145498]
[1742812791316,8e-05,87788.0,87787.0,0.1245498]
[1742812791618,0.00278722,87799.0,87798.0,0.1138955]
[1742812791805,0.00346722,87799.0,87798.0,0.8296155]
[1742812792008,0.00278722,87799.0,87798.0,0.8296155]
[1742812792323,0.00342722,87799.0,87798.0,0.8296155]
[1742812792513,0.1138778,87812.0,87811.0,0.1138786]
[1742812792720,0.0598375,87814.0,87813.0,0.113876]
[1742812792916,0.06043751,87814.0,87813.0,0.114516]
[1742812793217,0.3914,87819.0,87815.0,0.0569365]
[1742812793519,0.0029,87829.0,87824.0,0.1138618]
[1742812793520,0.1707957,87825.0,87824.0,0.1138618]
[1742812793721,0.11494051,87825.0,87824.0,0.1156]
[1742812793920,0.11494051,87825.0,87824.0,0.00108]
[1742812794222,0.1138747,87814.0,87813.0,0.24322903]
[1742812794405,0.11495471,87814.0,87813.0,0.3434667]
[1742812794606,0.11495471,87814.0,87813.0,0.2295933]
[1742812794809,0.11495471,87814.0,87813.0,0.11572]
[1742812795018,0.11495471,87814.0,87813.0,0.229596]
[1742812795222,0.11495471,87814.0,87813.0,0.11572]
[1742812795608,0.11495471,87814.0,87813.0,0.00116]
[1742812795609,0.22883241,87814.0,87813.0,0.00116]
[1742812796321,0.29033241,87814.0,87813.0,0.00216]
[1742812796720,0.29033241,87814.0,87810.0,0.3608]
[1742812796908,0.29033241,87814.0,87803.0,0.00017083]
[1742812796909,0.1138877,87804.0,87803.0,0.00017083]
[1742812797224,0.11448771,87804.0,87803.0,0.00017083]
[1742812797607,0.22836736,87804.0,87803.0,0.00017083]
[1742812797810,0.29026736,87804.0,87803.0,0.00017083]
[1742812798214,0.40478736,87804.0,87803.0,0.00017083]
[1742812798811,0.1139033,87792.0,87788.0,0.1139077]
[1742812799023,0.1145433,87792.0,87791.0,0.00121562]
[1742812799521,0.22843397,87792.0,87791.0,0.00045562]
[1742812799718,0.22843397,87792.0,87791.0,0.00121562]
[1742812800026,0.43561397,87792.0,87791.0,0.00045562]
[1742812800322,0.1109123,87785.0,87784.0,0.20164707]
[1742812800519,0.5868723,87785.0,87784.0,0.00072]
[1742812800715,0.1139136,87784.0,87783.0,0.00017083]
[1742812801022,0.113924,87776.0,87775.0,0.00045571]
[1742812801222,0.22896401,87776.0,87775.0,0.00045571]
[1742812801614,0.33988063,87776.0,87775.0,0.00045571]
[1742812801816,0.1139344,87768.0,87767.0,0.3608]
[1742812802111,0.1146944,87768.0,87767.0,0.36173083]
[1742812802315,0.1096944,87768.0,87767.0,0.47566653]
[1742812802531,0.2236214,87768.0,87767.0,0.36173083]
[1742812802719,0.2885214,87768.0,87767.0,0.00093083]
[1742812802920,0.2875214,87768.0,87767.0,0.00017083]
[1742812803128,0.2875214,87768.0,87767.0,0.11482653]
[1742812803316,0.179587,87768.0,87767.0,0.47562653]
[1742812803516,0.178827,87768.0,87767.0,0.47862653]
[1742812803825,0.2934814,87768.0,87767.0,0.47862653]
[1742812804133,0.2934814,87768.0,87767.0,0.00389083]
[1742812804326,0.2934814,87768.0,87767.0,0.00617083]
[1742812805020,0.2934814,87768.0,87767.0,0.12010653]
[1742812805217,0.2934814,87768.0,87767.0,0.12082653]
[1742812806019,0.2934814,87768.0,87767.0,0.18252653]
[1742812806213,0.147047,87768.0,87767.0,0.18252653]
[1742812806522,0.2285814,87768.0,87767.0,0.18252653]
[1742812806722,0.2940814,87768.0,87767.0,0.03689083]
[1742812806920,0.2940814,87768.0,87767.0,0.03617083]
[1742812807119,0.2940814,87768.0,87767.0,0.03689083]
[1742812807930,0.2940814,87768.0,87767.0,0.06859083]
[1742812808721,0.2940814,87768.0,87767.0,0.18252653]
[1742812809318,0.2940814,87768.0,87767.0,0.54332653]
[1742812809319,0.00072,87768.0,87767.0,0.54332653]
[1742812809533,0.00017083,87776.0,87767.0,0.54332653]
[1742812809534,0.00017083,87776.0,87775.0,0.1139253]
[1742812809837,0.1144,87792.0,87775.0,0.71592]
[1742812810027,0.0569561,87786.0,87783.0,0.3608]
[1742812810228,0.1708833,87779.0,87778.0,0.1139204]
[1742812810423,0.17983519,87779.0,87778.0,0.1139204]
[1742812810623,0.24299519,87779.0,87778.0,0.1146404]
[1742812810829,0.35692219,87779.0,87778.0,0.1146404]
[1742812811032,0.3479703,87779.0,87778.0,0.1146404]
[1742812811534,0.00076,87779.0,87778.0,0.1146404]
[1742812811736,0.0001705,87787.0,87786.0,0.1139111]
[1742812811934,0.1140803,87787.0,87786.0,0.4754311]
[1742812812131,0.1148803,87787.0,87786.0,0.5373311]
[1742812812531,0.0009705,87787.0,87786.0,0.5373311]
[1742812812733,0.00910193,87787.0,87786.0,0.5373311]
[1742812812925,0.00910193,87787.0,87786.0,0.5473311]
[1742812813123,0.0001705,87787.0,87786.0,0.5473311]
[1742812813735,0.1140803,87787.0,87786.0,0.42342]
[1742812814041,0.22871303,87787.0,87786.0,0.5393311]
[1742812814231,0.23765254,87787.0,87786.0,0.5393311]
[1742812814438,0.23765254,87787.0,87786.0,0.5413311]
[1742812815230,0.22871303,87787.0,87786.0,0.5413311]
[1742812815631,0.22871303,87787.0,87786.0,0.5423311]
[1742812816134,0.22871303,87787.0,87786.0,0.5413311]
[1742812816634,0.22871303,87787.0,87786.0,0.5096311]
[1742812817445,0.22871303,87787.0,87786.0,0.36552]
[1742812818034,0.22871303,87787.0,87786.0,0.00472]
[1742812818237,0.22871303,87787.0,87786.0,0.1179111]
[1742812818437,0.29521303,87787.0,87786.0,0.1187111]
[1742812818638,0.29521303,87787.0,87786.0,0.1505111]
[1742812820134,0.11480323,87787.0,87786.0,0.1505111]
[1742812820341,0.22871303,87787.0,87786.0,0.1813111]
[1742812820542,0.22871303,87787.0,87786.0,0.1913111]
[1742812820841,0.26191303,87787.0,87786.0,0.1913111]
[1742812821036,0.29431303,87787.0,87786.0,0.1913111]
[1742812821942,0.26111303,87787.0,87786.0,0.1913111]
[1742812823146,0.29191303,87787.0,87786.0,0.1913111]
[1742812825240,0.29191303,87787.0,87786.0,0.1813111]
[1742812825442,0.29191303,87787.0,87786.0,0.0366]
[1742812825745,0.29191303,87787.0,87786.0,0.1505111]
[1742812826145,0.29191303,87787.0,87786.0,0.0366]
[1742812826453,0.29191303,87787.0,87786.0,0.1505111]
[1742812826454,0.22871303,87787.0,87786.0,0.1505111]
[1742812826648,0.29221303,87787.0,87786.0,0.1830111]
[1742812828949,0.0008905,87787.0,87786.0,0.2964511]
[1742812829153,8e-05,87803.0,87799.0,0.1138942]
[1742812829352,8e-05,87803.0,87802.0,0.1138903]
[1742812829549,0.0569425,87806.0,87802.0,0.01076]
[1742812829746,0.113889,87803.0,87802.0,0.00076]
[1742812829945,0.114689,87803.0,87802.0,0.00076]
[1742812830152,0.0569503,87794.0,87793.0,0.113902]
[1742812830343,0.0569503,87794.0,87793.0,0.1715729]
[1742812830538,0.20356227,87794.0,87793.0,0.2028729]
[1742812830942,0.23606227,87794.0,87793.0,0.2028729]
[1742812832150,0.00072,87794.0,87793.0,0.2028729]
[1742812832354,0.3608,87808.0,87803.0,0.113889]
[1742812832555,0.0645,87807.0,87806.0,0.1138851]
[1742812832754,0.06526,87807.0,87806.0,0.1146051]
[1742812832962,0.06526,87807.0,87806.0,0.1459051]
[1742812833149,0.17916364,87807.0,87806.0,0.1459051]
[1742812833548,0.29304744,87807.0,87806.0,0.1459051]
[1742812834854,0.29404744,87807.0,87806.0,0.1459051]
[1742812835955,0.29504744,87807.0,87806.0,0.1459051]
[1742812836258,0.29504744,87807.0,87806.0,0.00072]
[1742812836948,0.29504744,87807.0,87806.0,0.1138851]
[1742812837147,0.29504744,87807.0,87806.0,0.1146051]
[1742812837656,0.29504744,87807.0,87806.0,0.1472051]
[1742812839351,0.29504744,87807.0,87806.0,0.1146051]
[1742812839557,0.11666364,87807.0,87806.0,0.1246051]
[1742812839756,0.00276,87807.0,87806.0,0.1246051]
[1742812839953,0.00276,87807.0,87806.0,0.1573051]
[1742812840152,0.1166438,87807.0,87806.0,0.1573051]
[1742812840556,0.1804438,87807.0,87806.0,0.1573051]
[1742812840859,0.1804438,87807.0,87806.0,0.00072]
[1742812841050,0.29433058,87807.0,87806.0,0.00072]
[1742812842153,0.29433058,87807.0,87806.0,0.1146051]
[1742812843156,0.29433058,87807.0,87806.0,0.03282]
[1742812843461,0.29433058,87807.0,87806.0,0.00072]
[1742812844363,0.40777058,87807.0,87806.0,0.00072]
[1742812844748,0.65468678,87807.0,87786.0,0.1139107]
[1742812844953,0.1139072,87789.0,87788.0,0.2029584]
[1742812845157,0.1139072,87789.0,87788.0,0.2035584]
[1742812845355,0.1757472,87789.0,87788.0,0.2035584]
[1742812845666,0.2896463,87789.0,87788.0,0.2035584]
[1742812846249,0.1757391,87789.0,87788.0,0.2035584]
[1742812846453,0.1757391,87789.0,87788.0,0.2357584]
[1742812846664,0.2896463,87789.0,87788.0,0.2487584]
[1742812848061,0.2896463,87789.0,87788.0,0.0066]
[1742812848265,0.2896463,87789.0,87788.0,0.0036]
[1742812848456,0.2896463,87789.0,87788.0,0.005]
[1742812848857,0.1139111,87786.0,87785.0,0.00017083]
[1742812849061,0.1708834,87779.0,87778.0,0.1139209]
[1742812849263,0.113924,87776.0,87775.0,0.00045571]
[1742812849560,0.112564,87776.0,87775.0,0.00109571]
[1742812849766,0.175364,87776.0,87775.0,0.00169571]
[1742812849955,0.175364,87776.0,87775.0,0.00045571]
[1742812850263,0.64807802,87776.0,87775.0,0.00109571]
[1742812850465,0.64807802,87776.0,87775.0,0.00045571]
[1742812850662,0.76135802,87776.0,87775.0,0.00045571]
[1742812851163,0.1139344,87768.0,87767.0,0.00017083]
[1742812851365,0.5866544,87768.0,87767.0,0.00081083]
[1742812851956,0.7598814,87768.0,87767.0,0.00081083]
[1742812852165,0.7558814,87768.0,87767.0,0.00081083]
[1742812852362,0.7558814,87768.0,87767.0,0.00017083]
[1742812852562,0.7558814,87768.0,87767.0,0.00217083]
[1742812853064,0.7558014,87768.0,87767.0,0.00277083]
[1742812853457,0.6426014,87768.0,87767.0,0.00277083]
[1742812853657,0.7557614,87768.0,87767.0,0.00277083]
[1742812855371,0.7551214,87768.0,87767.0,0.00217083]
[1742812856967,0.6419614,87768.0,87767.0,0.00217083]
[1742812857369,0.7552814,87768.0,87767.0,0.00217083]
[1742812860569,0.7559614,87768.0,87767.0,0.00217083]
[1742812860764,0.6426414,87768.0,87767.0,0.00217083]
[1742812860968,0.7557614,87768.0,87767.0,0.00217083]
[1742812864475,0.6426414,87768.0,87767.0,0.00217083]
[1742812864677,0.7557214,87768.0,87767.0,0.00217083]
[1742812865375,0.7556814,87768.0,87767.0,0.00217083]
[1742812866570,0.7556814,87768.0,87759.0,0.11440159]
[1742812866571,0.1709341,87753.0,87752.0,0.1709295]
[1742812866772,0.1716541,87753.0,87752.0,0.1716095]
[1742812867165,0.1716541,87753.0,87752.0,0.1816095]
[1742812867366,0.34989149,87753.0,87752.0,0.1816095]
[1742812867767,0.35089149,87753.0,87752.0,0.1816095]
[1742812868476,0.35089149,87753.0,87752.0,0.19523561]
[1742812869072,0.17995739,87753.0,87752.0,0.19523561]
[1742812869277,0.11565739,87753.0,87752.0,0.19523561]
[1742812869773,0.11565739,87753.0,87752.0,0.25713561]
[1742812870166,0.11565739,87753.0,87752.0,0.26713561]
[1742812870368,0.3612,87768.0,87760.0,0.1139448]
[1742812870577,0.0004,87784.0,87779.0,0.056959]
[1742812870781,0.0319,87771.0,87770.0,0.1139318]
[1742812871082,0.1139214,87778.0,87777.0,0.1139214]
[1742812871323,0.1458214,87778.0,87777.0,0.1146414]
[1742812871475,0.26047489,87778.0,87777.0,0.1146414]
[1742812871781,0.26047489,87778.0,87777.0,0.1246414]
[1742812872784,0.26147489,87778.0,87777.0,0.1346414]
[1742812872979,0.29467489,87778.0,87777.0,0.1246414]
[1742812873681,0.29467489,87778.0,87777.0,0.1346414]
[1742812874383,0.14655349,87778.0,87777.0,0.1346414]
[1742812874569,0.14655349,87778.0,87777.0,0.1396414]
[1742812874972,0.14661555,87778.0,87777.0,0.1396414]
[1742812875179,0.26053695,87778.0,87777.0,0.1396414]
[1742812875981,0.22863695,87778.0,87777.0,0.1396414]
[1742812876176,0.26033695,87778.0,87777.0,0.1396414]
[1742812876573,0.26033695,87778.0,87777.0,0.01272]
[1742812876773,0.29263695,87778.0,87777.0,0.00272]
[1742812876976,0.29263695,87778.0,87777.0,0.1166427]
[1742812877771,0.29263695,87778.0,87777.0,0.1146427]
[1742812877981,0.29263695,87778.0,87777.0,0.00172]
[1742812878382,0.29263695,87778.0,87777.0,0.1156427]
[1742812878577,0.29263695,87778.0,87777.0,0.00172]
[1742812878879,0.76627695,87778.0,87777.0,0.00172]
[1742812879177,0.76627695,87778.0,87777.0,0.001]
[1742812880084,0.62113695,87778.0,87777.0,0.001]
[1742812880382,0.65113695,87778.0,87777.0,0.001]
[1742812880582,0.65313695,87778.0,87777.0,0.001]
[1742812880778,0.1139253,87775.0,87774.0,0.003]
[1742812880973,0.1145653,87775.0,87774.0,0.003]
[1742812881179,0.2093653,87775.0,87774.0,0.003]
[1742812881481,0.2603936,87775.0,87774.0,0.013]
[1742812881684,0.2603936,87775.0,87774.0,0.01372]
[1742812882381,0.2603936,87775.0,87774.0,0.1276466]
[1742812882686,0.2613936,87775.0,87774.0,0.1276466]
[1742812883385,0.2923936,87775.0,87774.0,0.1276466]
[1742812884687,0.2623936,87775.0,87774.0,0.1578466]
[1742812885182,0.2623936,87775.0,87774.0,0.04092]
[1742812885382,0.2923936,87775.0,87774.0,0.03092]
[1742812887875,0.2923936,87775.0,87774.0,0.1448466]
[1742812888788,0.2923936,87775.0,87774.0,0.03092]
[1742812889290,0.2923936,87775.0,87774.0,0.1448466]
[1742812889480,0.2923936,87775.0,87774.0,0.03092]
[1742812889681,0.2923936,87775.0,87774.0,0.1448466]
[1742812890188,0.2923936,87775.0,87774.0,0.1548466]